fUST/lending_fUST_20240608
["ID","MTS","AMOUNT","RATE_DAILY","PERIOD"]
[328818230,1717835444789,-500.0,0.00016438,2]
[328818232,1717835444798,-222.65403744,0.00016438,2]
[328818795,1717835481074,-732.4810917,0.00015568,2]
[328818796,1717835481100,-7201.3970779,0.00016436,2]
[328818797,1717835481127,-358.68440705,0.00016438,2]
[328818798,1717835481153,-500.0,0.00016438,2]
[328818799,1717835481178,-652.87,0.00016438,2]
[328818800,1717835481206,-171.68859467,0.00016438,2]
[328818801,1717835481232,-500.0,0.00016438,2]
[328818802,1717835481260,-500.0,0.00016438,2]
[328818803,1717835481286,-1235.06,0.00016438,2]
[328818804,1717835481312,-821.41,0.00016438,2]
[328818805,1717835481338,-2084.25,0.00016438,2]
[328818806,1717835481362,-545.88,0.00016438,2]
[328818807,1717835481388,-500.0,0.00016438,2]
[328818808,1717835481413,-500.0,0.00016438,2]
[328818809,1717835481438,-500.0,0.00016438,2]
[328818810,1717835481465,-833.74,0.00016438,2]
[328818811,1717835481492,-500.0,0.00016438,2]
[328818812,1717835481518,-533.06502529,0.00016438,2]
[328818813,1717835481544,-500.0,0.00016438,2]
[328818814,1717835481570,-500.0,0.00016438,2]
[328818815,1717835481597,-500.0,0.00016438,2]
[328818816,1717835481623,-500.0,0.00016438,2]
[328818817,1717835481771,-361.47380339,0.00016438,2]
[328818826,1717835612136,6906.12707884,0.00016712,7]
[328818837,1717835842759,157.83990001,0.000226,29]
[328818934,1717836632309,-158.2,0.00015027,2]
[328818935,1717836632320,-9913.3534581,0.00015396,2]
[328818937,1717836632330,-158.2,0.00015454,2]
[328818938,1717836632340,-158.2,0.00015881,2]
[328818939,1717836632349,-635.08485918,0.00016161,2]
[328818940,1717836632359,-4237.72657179,0.00016266,2]
[328818941,1717836632369,-499.0,0.00016272,2]
[328818942,1717836632380,-150.0,0.00016272,2]
[328818943,1717836632389,-158.2,0.00016309,2]
[328818944,1717836632398,-173.90315981,0.00016338,2]
[328818945,1717836632410,-1599.50813717,0.00016433,2]
[328818946,1717836632420,-177.78637968,0.00016433,2]
[328818947,1717836632430,-1267.72091847,0.00016433,2]
[328818948,1717836632444,-10539.6485585,0.00016433,2]
[328818949,1717836632454,-1458.63307318,0.00016433,2]
[328818950,1717836632465,-5020.29263718,0.00016433,2]
[328818951,1717836632475,-528.92049915,0.00016433,2]
[328818952,1717836632487,-686.02573019,0.00016433,2]
[328818953,1717836632497,-1294.52780377,0.00016434,2]
[328818954,1717836632506,-33337.8262757,0.00016435,2]
[328818986,1717836638180,-1181.32044194,0.00016435,2]
[328818987,1717836638192,-1518.34020742,0.00016435,2]
[328819118,1717836644307,-1012.2697971,0.00016435,2]
[328819119,1717836644318,-554.12703264,0.00016435,2]
[328819120,1717836644327,-587.65006966,0.00016435,2]
[328820744,1717836807833,522.13004576,9.999e-05,2]
[328820745,1717837001195,1760.50271021,9.999e-05,2]
[328820746,1717837066182,3071.27011912,9.999e-05,2]
[328820753,1717837262163,208.33723987,9.999e-05,2]
[328820754,1717837441098,1350.53472857,9.999e-05,2]
[328820766,1717837832805,-2642.16842245,0.00014316,2]
[328820767,1717837832815,-1910.77900154,0.00014317,2]
[328820768,1717837832830,-10227.05257601,0.00014421,2]
[328820848,1717837840488,-49340.19244928,0.00014421,2]
[328820850,1717837840498,-9608.3773226,0.00014422,2]
[328820852,1717837840508,-556.26078014,0.00015357,2]
[328820853,1717837840517,-1500.09697047,0.00015357,2]
[328820856,1717837840528,-261.76097194,0.00015357,2]
[328820858,1717837840548,-208.07162365,0.00015357,2]
[328820861,1717837840559,-759.55453663,0.00015357,2]
[328820863,1717837840570,-188.2754351,0.00015357,2]
[328820865,1717837840581,-302.78496149,0.00015358,2]
[328820867,1717837840592,-1235.66859114,0.00015358,2]
[328820869,1717837840602,-1005.39883176,0.00015613,2]
[328820871,1717837840613,-150.0,0.00015628,2]
[328820873,1717837840623,-4237.72657179,0.00015936,2]
[328820875,1717837840633,-194.93299377,0.00016271,2]
[328820877,1717837840644,-230.32,0.00016272,2]
[328820879,1717837840654,-250.0,0.00016272,2]
[328820881,1717837840665,-247.984,0.00016272,2]
[328820883,1717837840675,-153.367,0.00016272,2]
[328820886,1717837840686,-499.0,0.00016272,2]
[328820889,1717837840698,-288.32855953,0.00016338,2]
[328820892,1717837840708,-2000.0,0.00016338,2]
[328820894,1717837840719,-207.3308972,0.00016436,2]
[328820896,1717837840730,-1702.96524585,0.00016436,2]
[328820898,1717837840740,-156.23580596,0.00016436,2]
[328820900,1717837840751,-285.23985406,0.00016436,2]
[328820902,1717837840762,-707.23540527,0.00016436,2]
[328820905,1717837840772,-525.55585399,0.00016437,2]
[328820908,1717837840783,-338.79617612,0.00016438,2]
[328820910,1717837840793,-500.0,0.00016438,2]
[328820912,1717837840804,-642.82,0.00016438,2]
[328820914,1717837840814,-151.0,0.00016438,2]
[328820916,1717837840827,-1338.29,0.00016438,2]
[328820918,1717837840838,-500.0,0.00016438,2]
[328820920,1717837840848,-651.48,0.00016438,2]
[328820922,1717837840859,-500.0,0.00016438,2]
[328820924,1717837840870,-502.53178838,0.00016438,2]
[328820926,1717837840881,-500.0,0.00016438,2]
[328820928,1717837840892,-500.0,0.00016438,2]
[328820930,1717837840903,-154.95351395,0.00016438,2]
[328820932,1717837840912,-500.16419303,0.00016438,2]
[328820934,1717837840922,-500.0,0.00016438,2]
[328820936,1717837840932,-500.0,0.00016438,2]
[328820938,1717837840942,-500.0,0.00016438,2]
[328820940,1717837840952,-500.0,0.00016438,2]
[328820942,1717837840962,-500.0,0.00016438,2]
[328820944,1717837840972,-500.0,0.00016438,2]
[328820946,1717837840982,-500.0,0.00016438,2]
[328820948,1717837840991,-1754.5,0.00016438,2]
[328820950,1717837841001,-500.0,0.00016438,2]
[328820952,1717837841011,-665.99,0.00016438,2]
[328820954,1717837841020,-500.0,0.00016438,2]
[328820956,1717837841030,-584.35,0.00016438,2]
[328820958,1717837841039,-151.0,0.00016438,2]
[328820960,1717837841049,-500.0,0.00016438,2]
[328820962,1717837841059,-151.0,0.00016438,2]
[328820964,1717837841069,-644.02,0.00016438,2]
[328820966,1717837841079,-814.55,0.00016438,2]
[328820968,1717837841088,-500.0,0.00016438,2]
[328820970,1717837841099,-500.0,0.00016438,2]
[328820972,1717837841108,-151.0,0.00016438,2]
[328820974,1717837841118,-223.508462,0.00016438,2]
[328820976,1717837841128,-500.0,0.00016438,2]
[328820978,1717837841138,-1183.6,0.00016438,2]
[328820980,1717837841148,-787.19,0.00016438,2]
[328820982,1717837841158,-500.0,0.00016438,2]
[328820984,1717837841168,-500.0,0.00016438,2]
[328820986,1717837841179,-1997.41,0.00016438,2]
[328820988,1717837841188,-500.0,0.00016438,2]
[328820990,1717837841198,-1105.61,0.00016438,2]
[328820992,1717837841208,-500.0,0.00016438,2]
[328820994,1717837841217,-500.0,0.00016438,2]
[328820996,1717837841227,-842.35,0.00016438,2]
[328820998,1717837841236,-799.0,0.00016438,2]
[328821000,1717837841246,-648.34645195,0.00016438,2]
[328821002,1717837841256,-590.77,0.00016438,2]
[328821004,1717837841266,-500.0,0.00016438,2]
[328821006,1717837841275,-500.0,0.00016438,2]
[328821008,1717837841285,-500.0,0.00016438,2]
[328821010,1717837841294,-1884.54,0.00016438,2]
[328821012,1717837841304,-809.09,0.00016438,2]
[328821014,1717837841313,-577.08,0.00016438,2]
[328821016,1717837841323,-811.32,0.00016438,2]
[328821018,1717837841333,-500.0,0.00016438,2]
[328821020,1717837841342,-151.0,0.00016438,2]
[328821022,1717837841351,-214.927471,0.00016438,2]
[328821024,1717837841361,-500.0,0.00016438,2]
[328821026,1717837841371,-500.0,0.00016438,2]
[328821028,1717837841380,-500.0,0.00016438,2]
[328821030,1717837841392,-2087.47,0.00016438,2]
[328821033,1717837841402,-500.0,0.00016438,2]
[328821035,1717837841411,-500.0,0.00016438,2]
[328821037,1717837841421,-500.0,0.00016438,2]
[328821039,1717837841431,-1190.37,0.00016438,2]
[328821041,1717837841441,-500.0,0.00016438,2]
[328821043,1717837841453,-500.0,0.00016438,2]
[328821045,1717837841462,-560.1,0.00016438,2]
[328821047,1717837841472,-500.0,0.00016438,2]
[328821049,1717837841482,-151.0,0.00016438,2]
[328821051,1717837841493,-293.468978,0.00016438,2]
[328821053,1717837841503,-500.0,0.00016438,2]
[328821055,1717837841512,-539.78,0.00016438,2]
[328821057,1717837841522,-755.34,0.00016438,2]
[328821059,1717837841532,-500.0,0.00016438,2]
[328821061,1717837841542,-1105.21,0.00016438,2]
[328821063,1717837841551,-2347.82,0.00016438,2]
[328821065,1717837841561,-611.72,0.00016438,2]
[328821067,1717837841571,-1880.73,0.00016438,2]
[328821069,1717837841581,-500.0,0.00016438,2]
[328821071,1717837841590,-500.0,0.00016438,2]
[328821073,1717837841600,-500.0,0.00016438,2]
[328821075,1717837841610,-648.50069708,0.00016438,2]
[328821077,1717837841619,-500.0,0.00016438,2]
[328821079,1717837841629,-500.0,0.00016438,2]
[328821081,1717837841639,-151.0,0.00016438,2]
[328821083,1717837841649,-630.81,0.00016438,2]
[328821085,1717837841660,-2113.54,0.00016438,2]
[328821087,1717837841670,-1598.13,0.00016438,2]
[328821088,1717837841680,-503.76393964,0.00016438,2]
[328821090,1717837841690,-500.0,0.00016438,2]
[328821092,1717837841702,-500.0,0.00016438,2]
[328821094,1717837841711,-1085.75,0.00016438,2]
[328821097,1717837841721,-501.47830249,0.00016438,2]
[328821099,1717837841730,-151.0,0.00016438,2]
[328821101,1717837841740,-500.0,0.00016438,2]
[328821103,1717837841750,-2712.23,0.00016438,2]
[328821105,1717837841760,-9717.92,0.00016438,2]
[328821107,1717837841771,-500.0,0.00016438,2]
[328821109,1717837841780,-500.0,0.00016438,2]
[328821110,1717837841790,-500.0,0.00016438,2]
[328821112,1717837841799,-2155.0,0.00016438,2]
[328821114,1717837841809,-500.0,0.00016438,2]
[328821115,1717837841818,-699.15,0.00016438,2]
[328821116,1717837841830,-2922.08,0.00016438,2]
[328821117,1717837841840,-500.0,0.00016438,2]
[328821118,1717837841850,-500.0,0.00016438,2]
[328821119,1717837841860,-500.0,0.00016438,2]
[328821120,1717837841871,-562.29,0.00016438,2]
[328821121,1717837841881,-500.0,0.00016438,2]
[328821122,1717837841891,-500.0,0.00016438,2]
[328821123,1717837841900,-1688.55,0.00016438,2]
[328821124,1717837841914,-654.99,0.00016438,2]
[328821125,1717837841925,-500.0,0.00016438,2]
[328821127,1717837841935,-500.0,0.00016438,2]
[328821128,1717837841944,-753.47,0.00016438,2]
[328821130,1717837841953,-500.0,0.00016438,2]
[328821132,1717837841963,-893.76,0.00016438,2]
[328821134,1717837841972,-1220.55,0.00016438,2]
[328821135,1717837841983,-3052.9,0.00016438,2]
[328821136,1717837841993,-500.0,0.00016438,2]
[328821137,1717837842003,-500.0,0.00016438,2]
[328821138,1717837842012,-500.0,0.00016438,2]
[328821139,1717837842021,-507.82239086,0.00016438,2]
[328821140,1717837842031,-548.98,0.00016438,2]
[328821141,1717837842041,-1019.61,0.00016438,2]
[328821142,1717837842050,-500.0,0.00016438,2]
[328821143,1717837842060,-613.36,0.00016438,2]
[328821144,1717837842070,-1987.77,0.00016438,2]
[328821145,1717837842080,-1454.67,0.00016438,2]
[328821146,1717837842089,-1217.53,0.00016438,2]
[328821147,1717837842099,-500.0,0.00016438,2]
[328821148,1717837842108,-566.17,0.00016438,2]
[328821149,1717837842117,-1044.34,0.00016438,2]
[328821150,1717837842126,-10385.20044124,0.00016438,2]
[328821151,1717837842143,-466.29326252,0.00016438,2]
[328821211,1717837846336,-302.14849804,0.00016438,2]
[328821223,1717837846440,-10475.2977982,0.00016438,2]
[328821225,1717837846450,-500.0,0.00016438,2]
[328821227,1717837846460,-3253.54,0.00016438,2]
[328821229,1717837846470,-876.76,0.00016438,2]
[328821231,1717837846480,-500.0,0.00016438,2]
[328821234,1717837846490,-944.66,0.00016438,2]
[328821237,1717837846501,-500.0,0.00016438,2]
[328821240,1717837846511,-500.0,0.00016438,2]
[328821243,1717837846521,-500.0,0.00016438,2]
[328821245,1717837846530,-223.84,0.00016438,2]
[328821247,1717837846539,-151.0,0.00016438,2]
[328821249,1717837846548,-151.0,0.00016438,2]
[328821251,1717837846558,-151.0,0.00016438,2]
[328821253,1717837846567,-151.0,0.00016438,2]
[328821255,1717837846577,-151.0,0.00016438,2]
[328821257,1717837846587,-151.0,0.00016438,2]
[328821259,1717837846596,-151.0,0.00016438,2]
[328821261,1717837846606,-151.0,0.00016438,2]
[328821263,1717837846616,-151.0,0.00016438,2]
[328821265,1717837846625,-151.0,0.00016438,2]
[328821267,1717837846635,-151.0,0.00016438,2]
[328821269,1717837846644,-151.0,0.00016438,2]
[328821271,1717837846653,-151.0,0.00016438,2]
[328821273,1717837846662,-1302.64,0.00016438,2]
[328821275,1717837846672,-151.0,0.00016438,2]
[328821277,1717837846682,-151.0,0.00016438,2]
[328821279,1717837846692,-151.0,0.00016438,2]
[328821282,1717837846702,-151.0,0.00016438,2]
[328821284,1717837846712,-151.0,0.00016438,2]
[328821286,1717837846721,-279.02769804,0.00016438,2]
[328821288,1717837846731,-151.0,0.00016438,2]
[328821290,1717837846740,-151.0,0.00016438,2]
[328821292,1717837846749,-151.0,0.00016438,2]
[328821294,1717837846759,-33.63001938,0.00016438,2]
[328821302,1717837847004,-202.53522562,0.00016438,2]
[328821304,1717837847014,-281.14557779,0.00016438,2]
[328821670,1717837893265,3453.06353942,0.00016712,7]
[328821671,1717837916957,292.56677993,0.00012327,2]
[328821672,1717837941343,154.95351395,9.999e-05,2]
[328821673,1717838012530,5179.59530913,0.00016712,7]
[328821683,1717838318866,565.0,0.00025,60]
[328821699,1717838783744,20000.0,0.0001,120]
[328821700,1717838808239,20000.0,0.00028,120]
[328821705,1717839008854,-275.1647711,0.00014826,2]
[328821706,1717839008876,-13364.4352289,0.00014854,2]
[328821735,1717839033056,-11535.5647711,0.00014854,2]
[328821736,1717839033066,-3000.0,0.00015056,2]
[328821737,1717839033075,-31624.38348362,0.00015436,2]
[328821738,1717839033085,-499.0,0.00016113,2]
[328821739,1717839033095,-630.39326453,0.00016121,2]
[328821740,1717839033105,-4237.72657179,0.00016192,2]
[328821741,1717839033114,-767.85577405,0.00016272,2]
[328821742,1717839033124,-150.0,0.00016272,2]
[328821743,1717839033133,-156.49544705,0.00016273,3]
[328821744,1717839033143,-444.29030938,0.00016338,2]
[328821745,1717839033152,-269.88693063,0.00016388,2]
[328821746,1717839033161,-1608.97341995,0.00016434,2]
[328821747,1717839033171,-197.38188503,0.00016436,2]
[328821748,1717839033181,-154.95351395,0.00016436,2]
[328821749,1717839033194,-664.37876443,0.00016436,2]
[328821750,1717839033204,-156.79013596,0.00016436,2]
[328821751,1717839033214,-250.51955536,0.00016436,2]
[328821752,1717839033223,-1903.86188157,0.00016437,2]
[328821753,1717839033235,-553.4320292,0.00016437,2]
[328821754,1717839033244,-500.0,0.00016438,2]
[328821755,1717839033254,-1059.54,0.00016438,2]
[328821756,1717839033263,-566.15,0.00016438,2]
[328821757,1717839033276,-500.0,0.00016438,2]
[328821758,1717839033285,-775.38,0.00016438,2]
[328821759,1717839033295,-500.0,0.00016438,2]
[328821760,1717839033305,-500.0,0.00016438,2]
[328821761,1717839033315,-500.0,0.00016438,2]
[328821762,1717839033324,-500.0,0.00016438,2]
[328821763,1717839033334,-517.29,0.00016438,2]
[328821764,1717839033344,-586.23,0.00016438,2]
[328821765,1717839033353,-500.0,0.00016438,2]
[328821766,1717839033363,-509.71230586,0.00016438,2]
[328821767,1717839033372,-624.78,0.00016438,2]
[328821768,1717839033381,-151.0,0.00016438,2]
[328821769,1717839033390,-500.0,0.00016438,2]
[328821770,1717839033400,-560.01,0.00016438,2]
[328821771,1717839033410,-500.0,0.00016438,2]
[328821772,1717839033419,-500.0,0.00016438,2]
[328821773,1717839033428,-780.61,0.00016438,2]
[328821774,1717839033439,-500.0,0.00016438,2]
[328821775,1717839033448,-500.0,0.00016438,2]
[328821776,1717839033459,-500.0,0.00016438,2]
[328821777,1717839033469,-500.0,0.00016438,2]
[328821778,1717839033480,-151.0,0.00016438,2]
[328821779,1717839033491,-151.0,0.00016438,2]
[328821780,1717839033502,-500.0,0.00016438,2]
[328821781,1717839033512,-500.0,0.00016438,2]
[328821782,1717839033522,-500.0,0.00016438,2]
[328821783,1717839033532,-500.0,0.00016438,2]
[328821784,1717839033542,-500.0,0.00016438,2]
[328821785,1717839033551,-500.0,0.00016438,2]
[328821786,1717839033560,-492.85829486,0.00016438,2]
[328821932,1717839043920,-477.94034108,0.00016438,2]
[328825268,1717839113542,11093.3,9.999e-05,2]
[328825269,1717839113578,1.92596521,9.999e-05,2]
[328825276,1717839642133,11095.22596521,9.999e-05,2]
[328825277,1717839859910,401.85260198,0.00016438,7]
[328825278,1717840023795,-250.0,0.00015373,2]
[328825279,1717840023821,-7205.6,0.00015384,2]
[328825280,1717840060511,-9385.75,0.00015384,2]
[328825325,1717840232466,-984.01825298,0.00015384,2]
[328825326,1717840232479,-7324.63174702,0.00015384,2]
[328825327,1717840232488,-4237.72657179,0.00016229,2]
[328825328,1717840232498,-499.0,0.00016272,2]
[328825329,1717840232507,-150.0,0.00016272,2]
[328825330,1717840232516,-150.0,0.00016272,2]
[328825331,1717840232525,-210.098,0.00016272,2]
[328825332,1717840232535,-355.43224752,0.00016338,2]
[328825333,1717840232546,-1983.19123106,0.00016338,2]
[328825334,1717840232559,-3771.63689223,0.00016398,2]
[328825335,1717840232568,-153.0,0.000164,2]
[328825336,1717840232578,-10412.94002372,0.00016433,2]
[328825337,1717840232587,-158.94411947,0.00016436,2]
[328825338,1717840232598,-5427.83745749,0.00016436,2]
[328825339,1717840232608,-819.8622721,0.00016436,2]
[328825340,1717840232618,-9847.55339252,0.00016437,2]
[328825381,1717840243830,-150.0,0.00016272,2]
[328825382,1717840243840,-3791.97961643,0.00016437,2]
[328825383,1717840243850,-500.0,0.00016438,2]
[328825384,1717840243859,-500.0,0.00016438,2]
[328825385,1717840243869,-500.0,0.00016438,2]
[328825386,1717840243879,-500.0,0.00016438,2]
[328825387,1717840243889,-500.0,0.00016438,2]
[328825388,1717840243899,-500.0,0.00016438,2]
[328825389,1717840243909,-526.11,0.00016438,2]
[328825390,1717840243918,-500.0,0.00016438,2]
[328825391,1717840243928,-627.69,0.00016438,2]
[328825392,1717840243939,-500.0,0.00016438,2]
[328825393,1717840243948,-500.0,0.00016438,2]
[328825394,1717840243958,-260.72493958,0.00016438,2]
[328825395,1717840243968,-151.0,0.00016438,2]
[328825396,1717840243978,-151.307514,0.00016438,2]
[328825397,1717840243988,-500.0,0.00016438,2]
[328825398,1717840243997,-500.0,0.00016438,2]
[328825399,1717840244007,-500.0,0.00016438,2]
[328825400,1717840244016,-500.0,0.00016438,2]
[328825401,1717840244026,-1282.52,0.00016438,2]
[328825402,1717840244036,-500.0,0.00016438,2]
[328825403,1717840244046,-616.04,0.00016438,2]
[328825404,1717840244055,-500.0,0.00016438,2]
[328825405,1717840244065,-500.0,0.00016438,2]
[328825406,1717840244075,-500.0,0.00016438,2]
[328825407,1717840244084,-156.565641,0.00016438,2]
[328825408,1717840244093,-536.67,0.00016438,2]
[328825409,1717840244103,-500.0,0.00016438,2]
[328825410,1717840244112,-500.0,0.00016438,2]
[328825411,1717840244122,-1379.2,0.00016438,4]
[328825412,1717840244132,-500.0,0.00016438,2]
[328825413,1717840244142,-500.0,0.00016438,2]
[328825414,1717840244152,-1806.02,0.00016438,2]
[328825415,1717840244161,-1093.83,0.00016438,2]
[328825416,1717840244171,-500.0,0.00016438,2]
[328825417,1717840244181,-777.51,0.00016438,2]
[328825418,1717840244190,-624.34,0.00016438,2]
[328825419,1717840244200,-500.0,0.00016438,2]
[328825420,1717840244210,-500.0,0.00016438,2]
[328825421,1717840244231,-500.0,0.00016438,2]
[328825422,1717840244242,-500.0,0.00016438,2]
[328825423,1717840244252,-179.89447463,0.00016438,2]
[328825424,1717840244262,-2025.48,0.00016438,2]
[328825425,1717840244272,-500.0,0.00016438,2]
[328825426,1717840244282,-500.0,0.00016438,2]
[328825427,1717840244292,-500.0,0.00016438,2]
[328825428,1717840244303,-807.25,0.00016438,2]
[328825429,1717840244313,-2000.49,0.00016438,2]
[328825430,1717840244486,-500.0,0.00016438,2]
[328825431,1717840244496,-1140.77,0.00016438,2]
[328825432,1717840244506,-500.0,0.00016438,2]
[328825433,1717840244515,-500.0,0.00016438,2]
[328825434,1717840244524,-500.0,0.00016438,2]
[328825435,1717840244534,-500.0,0.00016438,2]
[328825436,1717840244544,-723.87,0.00016438,2]
[328825437,1717840244556,-500.0,0.00016438,2]
[328825438,1717840244565,-2250.0,0.00016438,2]
[328825439,1717840244575,-500.0,0.00016438,2]
[328825440,1717840244584,-500.0,0.00016438,2]
[328825441,1717840244595,-500.0,0.00016438,2]
[328825442,1717840244604,-500.0,0.00016438,2]
[328825443,1717840244614,-500.0,0.00016438,2]
[328825444,1717840244624,-536.76,0.00016438,2]
[328825445,1717840244636,-1000.82,0.00016438,2]
[328825446,1717840244646,-500.0,0.00016438,2]
[328825447,1717840244655,-944.66,0.00016438,2]
[328825448,1717840244664,-1681.4,0.00016438,2]
[328825449,1717840244674,-372.48344079,0.00016438,2]
[328825450,1717840244683,-1059.16,0.00016438,2]
[328825451,1717840244693,-500.0,0.00016438,2]
[328825452,1717840244702,-1802.37,0.00016438,2]
[328825453,1717840244712,-500.0,0.00016438,2]
[328825454,1717840244722,-1531.54,0.00016438,2]
[328825455,1717840244731,-500.0,0.00016438,2]
[328825456,1717840244741,-604.53,0.00016438,2]
[328825457,1717840244751,-500.0,0.00016438,2]
[328825458,1717840244761,-617.18,0.00016438,2]
[328825459,1717840244771,-500.0,0.00016438,2]
[328825460,1717840244780,-2599.22,0.00016438,2]
[328825461,1717840244791,-538.86,0.00016438,2]
[328825462,1717840244800,-638.24,0.00016438,2]
[328825463,1717840244810,-500.0,0.00016438,2]
[328825464,1717840244820,-500.0,0.00016438,2]
[328825465,1717840244829,-500.0,0.00016438,2]
[328825466,1717840244838,-1169.69,0.00016438,2]
[328825467,1717840244847,-876.76,0.00016438,2]
[328825468,1717840244857,-587.8,0.00016438,2]
[328825469,1717840244866,-500.0,0.00016438,2]
[328825470,1717840244875,-223.84,0.00016438,2]
[328825471,1717840244885,-500.0,0.00016438,2]
[328825472,1717840244895,-500.0,0.00016438,2]
[328825473,1717840244904,-416.20306594,0.00016438,2]
[328825474,1717840244913,-562.56,0.00016438,2]
[328825475,1717840244923,-1015.39,0.00016438,2]
[328825476,1717840244932,-500.0,0.00016438,2]
[328825477,1717840244942,-3239.75,0.00016438,2]
[328825478,1717840244951,-814.88,0.00016438,2]
[328825479,1717840244960,-542.57,0.00016438,2]
[328825480,1717840244969,-500.88,0.00016438,2]
[328825481,1717840244978,-500.0,0.00016438,2]
[328825482,1717840244988,-1633.28,0.00016438,2]
[328825483,1717840244997,-500.0,0.00016438,2]
[328825484,1717840245007,-500.0,0.00016438,2]
[328825485,1717840245016,-737.28,0.00016438,2]
[328825486,1717840245028,-3253.54,0.00016438,2]
[328825487,1717840245039,-917.17,0.00016438,2]
[328825488,1717840245049,-549.25,0.00016438,2]
[328825489,1717840245059,-508.10192408,0.00016438,2]
[328825490,1717840245069,-8604.75,0.00016438,2]
[328825491,1717840245079,-1302.64,0.00016438,2]
[328825492,1717840245089,-500.0,0.00016438,2]
[328825493,1717840245099,-500.0,0.00016438,2]
[328825494,1717840245108,-454.43231365,0.00016438,2]
[328825495,1717840245118,-1426.35,0.00016438,2]
[328825496,1717840245128,-743.07,0.00016438,2]
[328825497,1717840245138,-4442.39,0.00016438,2]
[328825498,1717840245148,-500.0,0.00016438,2]
[328825499,1717840245158,-3748.56,0.00016438,2]
[328825500,1717840245167,-670.02,0.00016438,2]
[328825501,1717840245177,-151.0,0.00016438,2]
[328825502,1717840245187,-151.0,0.00016438,2]
[328825503,1717840245197,-500.0,0.00016438,2]
[328825504,1717840245207,-151.0,0.00016438,2]
[328825505,1717840245217,-151.0,0.00016438,2]
[328825506,1717840245227,-151.0,0.00016438,2]
[328825507,1717840245237,-151.0,0.00016438,2]
[328825508,1717840245247,-151.0,0.00016438,2]
[328825509,1717840245257,-151.0,0.00016438,2]
[328825510,1717840245267,-151.0,0.00016438,2]
[328825511,1717840245277,-151.0,0.00016438,2]
[328825512,1717840245288,-151.0,0.00016438,2]
[328825513,1717840245298,-151.0,0.00016438,2]
[328825514,1717840245307,-151.0,0.00016438,2]
[328825515,1717840245318,-151.0,0.00016438,2]
[328825516,1717840245328,-151.0,0.00016438,2]
[328825517,1717840245338,-151.0,0.00016438,2]
[328825518,1717840245348,-184.63002,0.00016438,2]
[328825519,1717840245357,-814.3,0.00016438,2]
[328825520,1717840245367,-4684.82,0.00016438,2]
[328825521,1717840245376,-551.81,0.00016438,2]
[328825522,1717840245386,-500.0,0.00016438,2]
[328825523,1717840245395,-500.0,0.00016438,2]
[328825524,1717840245405,-2388.52,0.00016438,2]
[328825525,1717840245416,-500.0,0.00016438,2]
[328825526,1717840245426,-500.0,0.00016438,2]
[328825527,1717840245436,-598.75,0.00016438,2]
[328825528,1717840245448,-910.61,0.00016438,2]
[328825529,1717840245457,-509.88332347,0.00016438,2]
[328825530,1717840245468,-500.0,0.00016438,2]
[328825531,1717840245477,-500.0,0.00016438,2]
[328825532,1717840245488,-500.0,0.00016438,2]
[328825533,1717840245498,-500.0,0.00016438,2]
[328825534,1717840245508,-500.0,0.00016438,2]